[Event "DVM U14 2024"]
[Site "Heidelberg"]
[Date "2024.12.27"]
[Round "1"]
[White "Ensslen, Jakob"]
[Black "Schwitkowski, Luka"]
[Result "0-1"]
[ECO "A46"]
[WhiteElo "1714"]
[BlackElo "2070"]
[Annotator "RC"]
[PlyCount "76"]
[EventDate "2024.12.23"]
[EventType "team-tourn"]
[EventRounds "7"]
[EventCountry "GER"]
[SourceTitle "playchess.com"]
[Source "ChessBase"]
[SourceQuality "1"]
[TimeControl "40/5400+30:1800+30"]

1. d4 {[%emt 0:00:06]} Nf6 {[%emt 0:00:04]} 2. Bf4 {[%emt 0:00:04]} e6 {[%emt 0:00:06]} 3. e3 {[%emt 0:00:11]} c5 {[%emt 0:00:08]} 4. c3 {[%emt 0:00:27]} Nc6 {[%emt 0:00:21]} 5. Nf3 {[%emt 0:00:53]} h6 {[%emt 0:00:07]} 6. h4 {[%emt 0:06:21]} d5 {[%emt 0:00:17]} 7. Nbd2 {[%emt 0:01:28]} Bd6 {[%emt 0:00:07]} 8. Ne5 {[%emt 0:01:08]} Qc7 {[%emt 0:00:08]} 9. Ndf3 {[%emt 0:01:00]} c4 {[%emt 0:21:54]} 10. Be2 {[%emt 0:03:52]} Nd7 {[%emt 0:02:38]} 11. Nxd7 {[%emt 0:04:42]} Bxd7 {[%emt 0:00:08]} 12. Qd2 {[%emt 0:02:45]} b5 {[%emt 0:01:31]} 13. O-O {[%emt 0:02:02]} O-O {[%emt 0:01:25]} 14. Rfe1 {[%emt 0:07:10]} Rfe8 {[%emt 0:02:56]} 15. Bf1 {[%emt 0:02:58]} Rad8 {[%emt 0:03:52]} 16. Bxd6 {[%emt 0:11:00]} Qxd6 {[%emt 0:00:05]} 17. e4 {[%emt 0:01:49]} dxe4 {[%emt 0:00:10]} 18. Rxe4 {[%emt 0:00:43]} e5 {[%emt 0:03:03]} 19. Rd1 {[%emt 0:09:31]} Bf5 {[%emt 0:01:59]} 20. Ree1 {[%emt 0:04:46]} e4 {[%emt 0:04:31]} 21. Nh2 {[%emt 0:02:08]} Ne5 {[%emt 0:11:01]} 22. Be2 {[%emt 0:04:34]} Ng6 {[%emt 0:15:01]} 23. h5 {[%emt 0:05:01]} Nf4 {[%emt 0:00:16]} 24. Nf1 {[%emt 0:01:26]} Nd3 {[%emt 0:09:59]} 25. Bxd3 {[%emt 0:00:56]} exd3 {[%emt 0:00:03]} 26. Ng3 {[%emt 0:08:15]} Bh7 {[%emt 0:00:39]} 27. a4 {[%emt 0:03:49]} a6 {[%emt 0:03:04]} 28. Ra1 {[%emt 0:01:31]} Kf8 {[%emt 0:01:17]} 29. Kf1 {[%emt 0:02:21]} f6 {[%emt 0:08:25]} 30. axb5 {[%emt 0:01:18]} axb5 {[%emt 0:00:01]} 31. b3 {[%emt 0:03:14]} cxb3 {[%emt 0:01:56]} 32. Reb1 {[%emt 0:02:24]} Ra8 {[%emt 0:01:09]} 33. Rd1 {[%emt 0:05:31]} Qd5 {[%emt 0:01:40]} 34. Rab1 {[%emt 0:01:01]} Ra2 {[%emt 0:00:13]} 35. Rb2 {[%emt 0:00:21]} Rea8 {[%emt 0:00:05]} 36. Rdb1 {[%emt 0:01:03]} Rxb2 {[%emt 0:00:02]} 37. Qxb2 {[%emt 0:00:16]} Ra2 {[%emt 0:00:11]} 38. Qxb3 {[%emt 0:00:44]} Qxb3 {[%emt 0:00:01]} 0-1

[Event "DVM U14 2024"]
[Site "Heidelberg"]
[Date "2024.12.27"]
[Round "1"]
[White "Freude, Paul"]
[Black "Obermair, Hannes"]
[Result "1-0"]
[ECO "B33"]
[WhiteElo "1714"]
[BlackElo "1653"]
[Annotator "NA RC"]
[PlyCount "137"]
[EventDate "2024.12.23"]
[EventType "team-tourn"]
[EventRounds "7"]
[EventCountry "GER"]
[SourceTitle "playchess.com"]
[Source "ChessBase"]
[SourceQuality "1"]
[TimeControl "40/5400+30:1800+30"]

1. e4 {[%emt 0:00:09]} c5 {[%emt 0:00:05]} 2. Nf3 {[%emt 0:00:03]} Nc6 {[%emt 0:00:05]} 3. d4 {[%emt 0:00:04]} cxd4 {[%emt 0:00:07]} 4. Nxd4 {[%emt 0:00:04]} Nf6 {[%emt 0:00:07]} 5. Nc3 {[%emt 0:00:04]} e5 {[%emt 0:00:09]} 6. Ndb5 {[%emt 0:00:11]} d6 {[%emt 0:00:16]} 7. Bg5 {[%emt 0:00:08]} a6 {[%emt 0:00:29]} 8. Na3 {[%emt 0:00:09]} b5 {[%emt 0:00:24]} 9. Nd5 {[%emt 0:00:28]} Be7 {[%emt 0:00:36]} 10. Bxf6 {[%emt 0:00:26]} Bxf6 {[%emt 0:00:26]} 11. c4 {[%emt 0:00:16]} b4 {[%emt 0:05:22]} 12. Nc2 {[%emt 0:00:08]} a5 {[%emt 0:02:38]} 13. b3 {[%emt 0:00:56]} O-O {[%emt 0:02:39]} 14. Be2 {[%emt 0:00:09]} Be6 {[%emt 0:01:38]} 15. Nxf6+ {[%emt 0:01:47]} gxf6 {[%emt 0:01:56]} 16. O-O {[%emt 0:02:40]} Qd7 {[%emt 0:06:30]} 17. f4 {[%emt 0:02:59]} f5 {[%emt 0:06:28]} 18. fxe5 {[%emt 0:03:05]} Nxe5 {[%emt 0:02:26]} 19. exf5 {[%emt 0:03:13]} Bxf5 {[%emt 0:00:56]} 20. Nd4 {[%emt 0:02:22]} Bg6 {[%emt 0:04:15]} 21. Kh1 {[%emt 0:03:27]} Rac8 {[%emt 0:04:20]} 22. h3 {[%emt 0:32:27]} d5 {[%emt 0:07:17]} 23. Nf3 {[%emt 0:00:49]} Be4 {[%emt 0:14:51]} 24. Qd4 {[%emt 0:30:45]} f6 {[%emt 0:15:00]} 25. Rad1 {[%emt 0:05:40]} Rcd8 {[%emt 0:09:16]} 26. Kg1 {[%emt 0:01:38]} Bxf3 {[%emt 0:01:43]} 27. Bxf3 {[%emt 0:00:31]} dxc4 {[%emt 0:00:45]} 28. Bd5+ {[%emt 0:01:21]} Kg7 {[%emt 0:01:30]} 29. bxc4 {[%emt 0:00:26]} Qc7 {[%emt 0:01:34]} 30. Rc1 {[%emt 0:01:58]} Rd7 {[%emt 0:02:11]} 31. Qf4 {[%emt 0:01:32]} Qc5+ {[%emt 0:01:16]} 32. Kh1 {[%emt 0:00:18]} Ng6 {[%emt 0:01:02]} 33. Qg3 {[%emt 0:00:46]} Re8 {[%emt 0:01:13]} 34. Rf5 {[%emt 0:01:22]} Red8 {[%emt 0:02:03]} 35. Rcf1 {[%emt 0:00:49]} Qd4 {[%emt 0:00:53]} 36. Rxf6 {[%emt 0:01:07]} Qxf6 {[%emt 0:01:04]} 37. Rxf6 {[%emt 0:00:04]} Kxf6 {[%emt 0:00:09]} 38. Qf2+ {[%emt 0:00:35]} Kg7 {[%emt 0:01:27]} 39. Qb6 {[%emt 0:00:40]} Rd6 {[%emt 0:02:09]} 40. Qxa5 {[%emt 0:00:23]} Nf4 {[%emt 0:00:12]} 41. Qxb4 {[%emt 0:31:33]} Nxd5 {[%emt 0:30:14]} 42. cxd5 {[%emt 0:00:07]} Rxd5 {[%emt 0:00:10]} 43. a4 {[%emt 0:00:27]} Rd4 {[%emt 0:00:24]} 44. Qc3 {[%emt 0:00:41]} Kf7 {[%emt 0:00:21]} 45. a5 {[%emt 0:00:17]} Ke7 {[%emt 0:00:34]} 46. a6 {[%emt 0:01:34]} Ra4 {[%emt 0:01:15]} 47. a7 {[%emt 0:01:10]} Rd1+ {[%emt 0:01:07]} 48. Kh2 {[%emt 0:00:09]} Rda1 {[%emt 0:00:15]} 49. Qc7+ {[%emt 0:00:10]} Kf8 {[%emt 0:00:20]} 50. Qxh7 {[%emt 0:00:23]} Rxa7 {[%emt 0:00:06]} 51. Qf5+ {[%emt 0:00:48]} Kg7 {[%emt 0:00:16]} 52. h4 {[%emt 0:00:41]} R1a5 {[%emt 0:00:37]} 53. Qg4+ {[%emt 0:00:21]} Kh7 {[%emt 0:00:32]} 54. Qe4+ {[%emt 0:01:36]} Kh6 {[%emt 0:00:42]} 55. Qd4 {[%emt 0:00:00]} R7a6 {[%emt 0:00:00]} 56. Kh3 {[%emt 0:00:00]} Ra3+ {[%emt 0:00:00]} 57. g3 {[%emt 0:00:00]} R3a4 {[%emt 0:00:00]} 58. Qh8+ {[%emt 0:00:00]} Kg6 {[%emt 0:00:00]} 59. h5+ {[%emt 0:00:00]} Kg5 {[%emt 0:00:00]} 60. Qe5+ {[%emt 0:00:00]} Kh6 {[%emt 0:00:00]} 61. g4 {[%emt 0:00:00]} Ra7 {[%emt 0:00:00]} 62. Qh8+ {[%emt 0:00:00]} Kg5 {[%emt 0:00:00]} 63. Qg8+ {[%emt 0:00:00]} Kf4 {[%emt 0:00:00]} 64. Qf8+ {[%emt 0:00:00]} Ke5 {[%emt 0:00:00]} 65. Qf5+ {[%emt 0:00:00]} Kd6 {[%emt 0:00:00]} 66. Kh4 {[%emt 0:00:00]} R4a5 {[%emt 0:00:00]} 67. Qf6+ {[%emt 0:00:00]} Kd5 {[%emt 0:00:00]} 68. h6 {[%emt 0:00:00]} R5a6 {[%emt 0:00:00]} 69. Qf5+ {[%emt 0:00:00]} 1-0

[Event "DVM U14 2024"]
[Site "Heidelberg"]
[Date "2024.12.27"]
[Round "1"]
[White "Kaplan, Arne"]
[Black "Bauer, Laura Sophie"]
[Result "0-1"]
[ECO "C54"]
[WhiteElo "1710"]
[BlackElo "1926"]
[Annotator "RC"]
[PlyCount "62"]
[EventDate "2024.12.23"]
[EventType "team-tourn"]
[EventRounds "7"]
[EventCountry "GER"]
[SourceTitle "playchess.com"]
[Source "ChessBase"]
[SourceQuality "1"]
[TimeControl "40/5400+30:1800+30"]

1. e4 {[%emt 0:00:06]} e5 {[%emt 0:00:06]} 2. Nf3 {[%emt 0:00:17]} Nc6 {[%emt 0:00:06]} 3. Bc4 {[%emt 0:00:46]} Bc5 {[%emt 0:06:03]} 4. c3 {[%emt 0:00:14]} Nf6 {[%emt 0:00:09]} 5. d4 {[%emt 0:00:55]} exd4 {[%emt 0:00:40]} 6. b4 {[%emt 0:00:35]} Bb6 {[%emt 0:00:45]} 7. e5 {[%emt 0:00:11]} d5 {[%emt 0:01:17]} 8. exf6 {[%emt 0:00:09]} dxc4 {[%emt 0:00:07]} 9. Qe2+ {[%emt 0:00:19]} Be6 {[%emt 0:00:08]} 10. b5 {[%emt 0:00:23]} d3 {[%emt 0:04:43]} 11. Qe4 {[%emt 0:00:13]} Nb4 {[%emt 0:00:09]} 12. O-O {[%emt 0:00:21]} Nc2 {[%emt 0:11:25]} 13. fxg7 {[%emt 0:00:18]} Rg8 {[%emt 0:00:36]} 14. Bg5 {[%emt 0:00:46]} Qd5 {[%emt 0:01:36]} 15. Qxh7 {[%emt 0:00:12]} Kd7 {[%emt 0:01:55]} 16. Nbd2 {[%emt 0:14:17]} Nxa1 {[%emt 0:05:23]} 17. Rxa1 {[%emt 0:05:59]} Bf5 {[%emt 0:04:47]} 18. Qh6 {[%emt 0:11:58]} Rae8 {[%emt 0:03:23]} 19. Bf6 {[%emt 0:02:27]} Qxb5 {[%emt 0:29:59]} 20. Qf4 {[%emt 0:14:06]} Be6 {[%emt 0:06:49]} 21. Ne5+ {[%emt 0:10:53]} Kc8 {[%emt 0:00:26]} 22. h4 {[%emt 0:01:43]} Ba5 {[%emt 0:05:33]} 23. Nexc4 {[%emt 0:09:27]} Bxc4 {[%emt 0:04:03]} 24. Nxc4 {[%emt 0:00:09]} Re6 {[%emt 0:04:19]} 25. Nxa5 {[%emt 0:05:51]} Qxa5 {[%emt 0:00:11]} 26. Qh6 {[%emt 0:01:01]} Qf5 {[%emt 0:05:22]} 27. Qh8 {[%emt 0:01:52]} Ree8 {[%emt 0:00:01]} 28. Qh6 {[%emt 0:00:12]} Re2 {[%emt 0:01:03]} 29. Bd4 {[%emt 0:10:10]} d2 {[%emt 0:01:20]} 30. Rf1 {[%emt 0:01:54]} Qd3 {[%emt 0:01:21]} 31. Qh5 {[%emt 0:02:18]} Re1 {[%emt 0:01:01]} 0-1

[Event "DVM U14 2024"]
[Site "Heidelberg"]
[Date "2024.12.27"]
[Round "1"]
[White "Kalinski, Jan"]
[Black "Geschke, David"]
[Result "0-1"]
[ECO "A26"]
[WhiteElo "1700"]
[BlackElo "1831"]
[Annotator "NA RC"]
[PlyCount "52"]
[EventDate "2024.12.23"]
[EventType "team-tourn"]
[EventRounds "7"]
[EventCountry "GER"]
[SourceTitle "playchess.com"]
[Source "ChessBase"]
[SourceQuality "1"]
[TimeControl "40/5400+30:1800+30"]

1. c4 {[%emt 0:00:03]} e5 {[%emt 0:00:09]} 2. g3 {[%emt 0:00:06]} Nc6 {[%emt 0:00:04]} 3. Bg2 {[%emt 0:00:32]} g6 {[%emt 0:00:24]} 4. Nc3 {[%emt 0:01:59]} Bg7 {[%emt 0:00:16]} 5. e4 {[%emt 0:00:38]} d6 {[%emt 0:01:57]} 6. d3 {[%emt 0:00:29]} Nge7 {[%emt 0:02:36]} 7. Nge2 {[%emt 0:00:48]} O-O {[%emt 0:00:52]} 8. O-O {[%emt 0:00:13]} f5 {[%emt 0:03:31] is now more promising than 8...Be6.} 9. f3 {[%emt 0:04:46] A26: English Opening vs King's Indian with ...Nc6 and d3.} h6 {[%emt 0:04:12]} 10. Be3 {[%emt 0:01:47]} Kh7 $146 {[%emt 0:18:17]} ({Predecessor:} 10... Nd4 11. Qd2 Kh7 12. Rae1 c6 13. Kh1 Be6 14. b3 Qc7 15. Bg1 d5 16. Nxd4 exd4 {1-0 Fossum,O (1682)-Mellem,N (2118) NOR-ch U18 int 2002 (2)}) 11. a3 {[%emt 0:07:26]} g5 {[%emt 0:02:49]} 12. b4 {[%emt 0:15:42]} f4 {[%emt 0:02:03]} 13. Bf2 {[%emt 0:01:47]} Ng6 {[%emt 0:03:55]} 14. Qd2 {[%emt 0:04:49]} Be6 {[%emt 0:02:13]} 15. Rad1 {[%emt 0:05:11]} g4 {[%emt 0:06:15]} 16. gxf4 {[%emt 0:29:36]} gxf3 {[%emt 0:03:47]} 17. Bxf3 {[%emt 0:09:47]} exf4 {[%emt 0:05:51]} 18. Kh1 {[%emt 0:02:23]} Nce5 {[%emt 0:02:42]} 19. Ng1 {[%emt 0:00:55]} Nxf3 {[%emt 0:19:38]} 20. Nxf3 {[%emt 0:00:08]} Bg4 {[%emt 0:00:17]} 21. Bd4 {[%emt 0:05:28]} Bxf3+ {[%emt 0:01:47]} 22. Rxf3 {[%emt 0:00:10]} Bxd4 {[%emt 0:00:19]} 23. Rdf1 {[%emt 0:02:01]} Be3 {[%emt 0:03:24]} 24. Qe1 {[%emt 0:00:42]} Qg5 $19 {[%emt 0:01:52]} 25. Qe2 {[%emt 0:01:01]} Nh4 {[%emt 0:01:09]} 26. Rh3 {[%emt 0:00:43]} f3 {[%emt 0:00:50]} 0-1

[Event "DVM U14 2024"]
[Site "Heidelberg"]
[Date "2024.12.27"]
[Round "1"]
[White "Hasanovic, Arian"]
[Black "Nawrath, Lars"]
[Result "1-0"]
[ECO "C01"]
[WhiteElo "1685"]
[BlackElo "1189"]
[Annotator "NA RC"]
[PlyCount "71"]
[EventDate "2024.12.23"]
[EventType "team-tourn"]
[EventRounds "7"]
[EventCountry "GER"]
[SourceTitle "playchess.com"]
[Source "ChessBase"]
[SourceQuality "1"]
[TimeControl "40/5400+30:1800+30"]

1. e4 {[%emt 0:00:01]} e6 {[%emt 0:00:08]} 2. d4 {[%emt 0:00:06]} d5 {[%emt 0:00:04]} 3. exd5 {[%emt 0:00:05]} exd5 {[%emt 0:00:06]} 4. Bd3 {[%emt 0:00:14]} Nf6 {[%emt 0:00:17]} 5. Nf3 {[%emt 0:02:11]} Be7 {[%emt 0:01:05]} 6. Bf4 {[%emt 0:00:28]} Nc6 {[%emt 0:01:19]} 7. c3 {[%emt 0:00:17]} O-O {[%emt 0:00:49]} 8. Nbd2 {[%emt 0:00:31]} Re8 {[%emt 0:01:24]} 9. O-O {[%emt 0:00:25]} Bd6 {[%emt 0:00:36]} 10. Bxd6 {[%emt 0:00:40]} Qxd6 {[%emt 0:00:08]} 11. Qc2 {[%emt 0:00:38]} Bg4 {[%emt 0:02:01]} 12. h3 {[%emt 0:00:22]} Bxf3 {[%emt 0:00:32]} 13. Nxf3 {[%emt 0:00:09]} Ne4 {[%emt 0:03:10]} 14. Rfe1 {[%emt 0:04:18]} f5 {[%emt 0:00:48]} 15. Re2 {[%emt 0:01:22]} Qf4 {[%emt 0:03:46]} 16. Qb3 {[%emt 0:05:02]} Ne7 {[%emt 0:05:54]} 17. Rae1 {[%emt 0:01:55]} b6 {[%emt 0:01:37]} 18. Bxe4 {[%emt 0:01:36]} fxe4 {[%emt 0:00:08]} 19. Rxe4 {[%emt 0:00:25]} Qd6 {[%emt 0:01:57]} 20. Rxe7 {[%emt 0:00:28]} Rxe7 {[%emt 0:00:08]} 21. Rxe7 {[%emt 0:00:07]} Qxe7 {[%emt 0:00:14]} 22. Qxd5+ {[%emt 0:00:04]} Kf8 {[%emt 0:02:19]} 23. Qxa8+ {[%emt 0:00:14]} Kf7 {[%emt 0:00:07]} 24. Qd5+ {[%emt 0:00:26]} Kg6 {[%emt 0:00:51]} 25. Ne5+ {[%emt 0:01:17]} Kf6 {[%emt 0:01:49]} 26. Nf3 {[%emt 0:02:08]} Kg6 {[%emt 0:01:20]} 27. Qe5 {[%emt 0:01:04]} Qf8 {[%emt 0:01:31]} 28. Qe6+ {[%emt 0:00:24]} Qf6 {[%emt 0:01:20]} 29. Qxf6+ {[%emt 0:00:48]} Kxf6 {[%emt 0:00:07]} 30. Ne5 {[%emt 0:00:53]} c5 {[%emt 0:00:20]} 31. f4 {[%emt 0:00:48]} Kf5 {[%emt 0:00:08]} 32. d5 {[%emt 0:00:55]} g5 {[%emt 0:00:36]} 33. g3 {[%emt 0:03:33]} gxf4 {[%emt 0:01:12]} 34. gxf4 {[%emt 0:00:08]} h5 {[%emt 0:00:30]} 35. d6 {[%emt 0:00:50]} Ke6 {[%emt 0:00:06]} 36. d7 {[%emt 0:00:12]} 1-0

[Event "DVM U14 2024"]
[Site "Heidelberg"]
[Date "2024.12.27"]
[Round "1"]
[White "Pazar, Ubeyd"]
[Black "Maier, Kalle"]
[Result "1-0"]
[ECO "A57"]
[WhiteElo "1669"]
[BlackElo "1673"]
[Annotator "NA RC"]
[PlyCount "107"]
[EventDate "2024.12.23"]
[EventType "team-tourn"]
[EventRounds "7"]
[EventCountry "GER"]
[SourceTitle "playchess.com"]
[Source "ChessBase"]
[SourceQuality "1"]
[TimeControl "40/5400+30:1800+30"]

1. d4 {[%emt 0:00:02]} Nf6 {[%emt 0:00:07]} 2. c4 {[%emt 0:00:08]} c5 {[%emt 0:00:08]} 3. d5 {[%emt 0:00:37]} b5 {[%emt 0:00:07]} 4. b3 {[%emt 0:01:38]} g6 {[%emt 0:02:59]} 5. Bb2 {[%emt 0:00:12]} Bg7 {[%emt 0:01:49]} 6. Qc2 {[%emt 0:00:15]} bxc4 {[%emt 0:02:30]} 7. bxc4 {[%emt 0:00:26]} d6 {[%emt 0:01:43]} 8. Nd2 {[%emt 0:00:34]} Nbd7 {[%emt 0:04:35]} 9. Ngf3 {[%emt 0:00:37]} O-O {[%emt 0:02:25]} 10. e4 {[%emt 0:00:35]} Rb8 {[%emt 0:03:30]} 11. Rb1 {[%emt 0:01:07]} Ba6 {[%emt 0:08:54]} 12. Bd3 {[%emt 0:02:17]} Qc7 {[%emt 0:04:26]} 13. O-O {[%emt 0:02:34]} Rb6 {[%emt 0:03:47]} 14. Bc3 {[%emt 0:00:45]} Rxb1 {[%emt 0:03:44]} 15. Rxb1 {[%emt 0:00:10]} Rb8 {[%emt 0:01:31]} 16. Nb3 {[%emt 0:02:45]} Nb6 {[%emt 0:06:49]} 17. Na5 {[%emt 0:01:21]} Bb7 {[%emt 0:08:50]} 18. Nd2 {[%emt 0:03:23]} Qd7 {[%emt 0:03:37]} 19. h3 {[%emt 0:02:43]} Nh5 {[%emt 0:04:33]} 20. Bxg7 {[%emt 0:00:49]} Kxg7 {[%emt 0:00:13]} 21. Ndb3 {[%emt 0:01:44]} e5 {[%emt 0:04:01]} 22. Nxb7 {[%emt 0:00:34]} Rxb7 {[%emt 0:01:11]} 23. Na5 {[%emt 0:00:16]} Rc7 {[%emt 0:01:35]} 24. Nc6 {[%emt 0:02:20]} Nf4 {[%emt 0:05:42]} 25. Kf1 {[%emt 0:02:36]} Nxd3 {[%emt 0:01:43]} 26. Qxd3 {[%emt 0:00:08]} Rb7 {[%emt 0:03:32]} 27. Qb3 {[%emt 0:00:53]} Rc7 {[%emt 0:04:22]} 28. Qb5 {[%emt 0:04:03]} f5 {[%emt 0:03:39]} 29. exf5 {[%emt 0:01:33]} Qxf5 {[%emt 0:01:21]} 30. Qb3 {[%emt 0:01:47]} Nxc4 {[%emt 0:01:38]} 31. Rd1 {[%emt 0:05:13]} Rf7 {[%emt 0:02:00]} 32. f3 {[%emt 0:01:26]} Qf4 {[%emt 0:02:05]} 33. Nd8 {[%emt 0:01:35]} Ne3+ {[%emt 0:01:43]} 34. Ke2 {[%emt 0:00:35]} c4 {[%emt 0:03:56]} 35. Ne6+ {[%emt 0:00:10]} Kh6 {[%emt 0:00:42]} 36. Qxe3 {[%emt 0:00:09]} Qxe3+ {[%emt 0:00:37]} 37. Kxe3 {[%emt 0:00:06]} Rb7 {[%emt 0:00:21]} 38. Rc1 {[%emt 0:01:46]} Rb4 {[%emt 0:00:44]} 39. Nd8 {[%emt 0:00:40]} Rb6 {[%emt 0:00:48]} 40. Rxc4 {[%emt 0:00:21]} Ra6 {[%emt 0:00:08]} 41. Rc6 {[%emt 0:30:45]} Rxa2 {[%emt 0:30:11]} 42. g4 {[%emt 0:00:12]} a5 {[%emt 0:00:19]} 43. Rxd6 {[%emt 0:00:10]} a4 {[%emt 0:00:08]} 44. Ra6 {[%emt 0:00:10]} a3 {[%emt 0:00:12]} 45. Nc6 {[%emt 0:00:42]} Ra1 {[%emt 0:00:15]} 46. Kd2 {[%emt 0:00:18]} a2 {[%emt 0:00:35]} 47. d6 {[%emt 0:00:16]} e4 {[%emt 0:00:31]} 48. fxe4 {[%emt 0:00:11]} Rh1 {[%emt 0:00:28]} 49. d7 {[%emt 0:00:18]} a1=Q {[%emt 0:00:12]} 50. Rxa1 {[%emt 0:00:01]} Rxa1 {[%emt 0:00:10]} 51. d8=Q {[%emt 0:00:03]} Ra2+ {[%emt 0:00:21]} 52. Ke3 {[%emt 0:00:09]} Ra3+ {[%emt 0:00:19]} 53. Kf4 {[%emt 0:00:05]} Rxh3 {[%emt 0:00:50]} 54. Qf8# {[%emt 0:00:11]} 1-0

[Event "DVM U14 2024"]
[Site "Heidelberg"]
[Date "2024.12.27"]
[Round "1"]
[White "Bock, Leonas"]
[Black "Laube, Karl"]
[Result "1-0"]
[ECO "D05"]
[WhiteElo "1668"]
[BlackElo "1635"]
[Annotator "NA RC"]
[PlyCount "73"]
[EventDate "2024.12.23"]
[EventType "team-tourn"]
[EventRounds "7"]
[EventCountry "GER"]
[SourceTitle "playchess.com"]
[Source "ChessBase"]
[SourceQuality "1"]
[TimeControl "40/5400+30:1800+30"]

1. d4 {[%emt 0:00:05]} e6 {[%emt 0:00:04]} 2. Nf3 {[%emt 0:00:12]} d5 {[%emt 0:00:11]} 3. e3 {[%emt 0:00:12]} c5 {[%emt 0:00:19]} 4. b3 {[%emt 0:01:28]} Nc6 {[%emt 0:00:12]} 5. Bb2 {[%emt 0:01:09]} Nf6 {[%emt 0:00:35]} 6. a3 {[%emt 0:00:34]} Bd6 {[%emt 0:00:40]} 7. Bd3 {[%emt 0:00:11]} O-O {[%emt 0:00:54]} 8. O-O {[%emt 0:00:29]} a6 {[%emt 0:00:25]} 9. c4 {[%emt 0:10:17]} cxd4 {[%emt 0:06:42]} 10. exd4 {[%emt 0:05:05]} Re8 {[%emt 0:01:25]} 11. Re1 {[%emt 0:04:13]} b6 {[%emt 0:02:06]} 12. Nbd2 {[%emt 0:02:54]} Qc7 {[%emt 0:01:31]} 13. Rc1 {[%emt 0:01:05]} Na5 {[%emt 0:01:46]} 14. cxd5 {[%emt 0:02:58]} Qe7 {[%emt 0:00:33]} 15. b4 {[%emt 0:02:45]} Nb7 {[%emt 0:02:31]} 16. dxe6 {[%emt 0:14:43]} Bxe6 {[%emt 0:01:04]} 17. Ne4 {[%emt 0:10:11]} Nxe4 {[%emt 0:03:12]} 18. Bxe4 {[%emt 0:00:24]} Qd7 {[%emt 0:04:07]} 19. Bc6 {[%emt 0:00:22]} Qe7 {[%emt 0:03:15]} 20. Bxe8 {[%emt 0:00:07]} Qxe8 {[%emt 0:01:00]} 21. d5 {[%emt 0:00:06]} Qd7 {[%emt 0:02:43]} 22. dxe6 {[%emt 0:00:13]} fxe6 {[%emt 0:00:19]} 23. Ne5 {[%emt 0:00:22]} Qe7 {[%emt 0:01:06]} 24. Qg4 {[%emt 0:01:16]} Kh8 {[%emt 0:01:55]} 25. Nc6 {[%emt 0:02:23]} Qf7 {[%emt 0:00:46]} 26. Rxe6 {[%emt 0:03:16]} Rf8 {[%emt 0:00:39]} 27. Rc2 {[%emt 0:04:07]} a5 {[%emt 0:02:01]} 28. Ne5 {[%emt 0:01:24]} Bxe5 {[%emt 0:00:57]} 29. Bxe5 {[%emt 0:00:50]} Nd8 {[%emt 0:00:39]} 30. Rxb6 {[%emt 0:02:11]} axb4 {[%emt 0:00:30]} 31. Rxb4 {[%emt 0:01:35]} Nc6 {[%emt 0:01:53]} 32. Rf4 {[%emt 0:00:35]} Nxe5 {[%emt 0:02:01]} 33. Rxf7 {[%emt 0:00:05]} Nxf7 {[%emt 0:00:10]} 34. Rc8 {[%emt 0:00:06]} Kg8 {[%emt 0:00:45]} 35. Rxf8+ {[%emt 0:00:37]} Kxf8 {[%emt 0:00:06]} 36. Qd7 {[%emt 0:00:35]} g6 {[%emt 0:00:18]} 37. a4 {[%emt 0:00:06]} 1-0

[Event "DVM U14 2024"]
[Site "Heidelberg"]
[Date "2024.12.27"]
[Round "1"]
[White "Sitnik, Arthur"]
[Black "Splitt, Albert"]
[Result "0-1"]
[ECO "C30"]
[WhiteElo "1668"]
[BlackElo "1571"]
[Annotator "NA RC"]
[PlyCount "112"]
[EventDate "2024.12.23"]
[EventType "team-tourn"]
[EventRounds "7"]
[EventCountry "GER"]
[SourceTitle "playchess.com"]
[Source "ChessBase"]
[SourceQuality "1"]
[TimeControl "40/5400+30:1800+30"]

1. e4 {[%emt 0:00:01]} e5 {[%emt 0:00:08]} 2. Nc3 {[%emt 0:00:03]} Nf6 {[%emt 0:00:10]} 3. f4 {[%emt 0:00:04]} d6 {[%emt 0:04:02]} 4. Nf3 {[%emt 0:00:14]} Nc6 {[%emt 0:00:15]} 5. Bb5 {[%emt 0:00:43]} Bd7 {[%emt 0:04:44]} 6. O-O {[%emt 0:03:25]} Be7 {[%emt 0:01:18]} 7. fxe5 {[%emt 0:02:05]} Nxe5 {[%emt 0:02:24]} 8. Nxe5 {[%emt 0:00:21]} dxe5 {[%emt 0:01:31]} 9. Bc4 {[%emt 0:02:08]} O-O {[%emt 0:02:22]} 10. d3 {[%emt 0:00:58]} Bc5+ {[%emt 0:01:06]} 11. Kh1 {[%emt 0:00:03]} Ng4 {[%emt 0:01:00]} 12. Qd2 {[%emt 0:24:00]} Qh4 {[%emt 0:04:06]} 13. g3 {[%emt 0:02:14]} Qh3 {[%emt 0:03:28]} 14. Qg2 {[%emt 0:01:35]} Qh5 {[%emt 0:01:29]} 15. h4 {[%emt 0:10:26]} Kh8 {[%emt 0:05:24]} 16. Bb5 {[%emt 0:07:41]} c6 {[%emt 0:00:21]} 17. Bc4 {[%emt 0:00:04]} f5 {[%emt 0:01:54]} 18. exf5 {[%emt 0:02:15]} Rxf5 {[%emt 0:00:18]} 19. Rxf5 {[%emt 0:02:37]} Qxf5 {[%emt 0:00:33]} 20. Ne4 {[%emt 0:00:50]} Bb6 {[%emt 0:04:56]} 21. Nd6 {[%emt 0:07:03]} Nf2+ {[%emt 0:03:25]} 22. Kh2 {[%emt 0:00:37]} Qf6 {[%emt 0:09:30]} 23. Nf7+ {[%emt 0:00:48]} Kg8 {[%emt 0:00:14]} 24. Ng5+ {[%emt 0:01:20]} Kh8 {[%emt 0:01:51]} 25. Nf7+ {[%emt 0:00:06]} Kg8 {[%emt 0:00:14]} 26. Nxe5+ {[%emt 0:01:22]} Be6 {[%emt 0:01:25]} 27. Bxe6+ {[%emt 0:02:22]} Qxe6 {[%emt 0:00:18]} 28. Bf4 {[%emt 0:00:18]} Re8 {[%emt 0:01:10]} 29. c3 {[%emt 0:05:12]} Ng4+ {[%emt 0:00:29]} 30. Nxg4 {[%emt 0:00:12]} Qxg4 {[%emt 0:00:09]} 31. Kh1 {[%emt 0:02:10]} Re2 {[%emt 0:00:24]} 32. Qf1 {[%emt 0:01:25]} Rf2 {[%emt 0:00:26]} 33. Qxf2 {[%emt 0:02:30]} Bxf2 {[%emt 0:00:09]} 34. Kg2 {[%emt 0:00:16]} Qe2 {[%emt 0:00:34]} 35. Rf1 {[%emt 0:01:09]} Be3+ {[%emt 0:00:21]} 36. Kh3 {[%emt 0:00:31]} Qxf1+ {[%emt 0:00:09]} 37. Kg4 {[%emt 0:00:03]} Bxf4 {[%emt 0:00:13]} 38. gxf4 {[%emt 0:00:05]} Qxd3 {[%emt 0:00:34]} 39. f5 {[%emt 0:00:07]} Kf7 {[%emt 0:00:21]} 40. h5 {[%emt 0:00:07]} Kf6 {[%emt 0:00:10]} 41. h6 {[%emt 0:30:07]} Qxf5+ {[%emt 0:30:12]} 42. Kg3 {[%emt 0:00:06]} Qg5+ {[%emt 0:00:24]} 43. Kf3 {[%emt 0:00:05]} gxh6 {[%emt 0:00:14]} 44. b4 {[%emt 0:00:04]} h5 {[%emt 0:00:08]} 45. b5 {[%emt 0:00:02]} Qg4+ {[%emt 0:00:25]} 46. Ke3 {[%emt 0:00:06]} Ke5 {[%emt 0:00:18]} 47. b6 {[%emt 0:00:09]} axb6 {[%emt 0:00:06]} 48. c4 {[%emt 0:00:06]} Qf4+ {[%emt 0:00:33]} 49. Kd3 {[%emt 0:00:06]} Qf3+ {[%emt 0:00:18]} 50. Kc2 {[%emt 0:00:05]} Kd4 {[%emt 0:00:09]} 51. c5 {[%emt 0:00:02]} Qd3+ {[%emt 0:00:29]} 52. Kb2 {[%emt 0:00:05]} Kc4 {[%emt 0:00:17]} 53. a4 {[%emt 0:00:12]} Kb4 {[%emt 0:00:28]} 54. a5 {[%emt 0:00:09]} Qd2+ {[%emt 0:00:12]} 55. Ka1 {[%emt 0:00:07]} Kb3 {[%emt 0:00:07]} 56. axb6 {[%emt 0:00:05]} Qa2# {[%emt 0:00:46]} 0-1